bitfinex/quotes_ETHUSD_20210701
["timestamp","ask_amount","ask_price","bid_price","bid_amount"]
[1625117091644,5.77880253,2199.5,2199.3,50.0]
[1625117092248,2.4958,2199.6,2199.3,50.0]
[1625117092345,0.14,2199.5,2199.3,50.0]
[1625117092503,6.81845,2199.5,2199.3,50.0]
[1625117092598,2.4958,2199.6,2199.3,50.0]
[1625117092697,1.129,2199.6,2199.4,0.14]
[1625117092796,1.7472,2199.7,2199.4,0.14]
[1625117092898,2.64,2199.8,2199.4,0.14]
[1625117093184,2.64,2199.8,2199.3,50.0]
[1625117093243,0.14,2199.8,2199.3,50.0]
[1625117093793,6.81798,2199.6,2199.3,50.0]
[1625117093993,12.74234149,2199.6,2199.3,50.0]
[1625117095441,6.81798,2199.6,2199.3,50.0]
[1625117097401,12.66200249,2199.6,2199.3,50.0]
[1625117098230,14.50224847,2199.6,2199.3,50.0]
[1625117098632,0.14,2199.5,2199.3,50.0]
[1625117098732,13.76,2199.4,2199.3,50.0]
[1625117098830,22.81632452,2199.4,2199.3,50.0]
[1625117099034,22.87632452,2199.4,2199.3,50.0]
[1625117099133,22.87632452,2199.4,2198.5,0.13401963]
[1625117099236,0.04599424,2199.3,2198.5,0.13401963]
[1625117099334,0.18599424,2199.3,2198.5,0.13401963]
[1625117099439,6.82114,2198.9,2198.5,0.13401963]
[1625117099534,11.57924,2198.9,2198.5,0.13401963]
[1625117099635,6.22561516,2198.8,2198.3,0.1340385]
[1625117100591,6.22561516,2198.8,2198.2,0.13403728]
[1625117100892,9.09507,2198.7,2198.2,0.13403728]
[1625117100991,4.8981,2198.9,2198.2,0.13403728]
[1625117101089,3.7,2198.7,2198.3,0.12]
[1625117101188,3.7,2198.7,2198.2,0.13403728]
[1625117101943,3.7,2198.7,2198.3,0.13403624]
[1625117103181,3.7,2198.7,2198.2,0.13397322]
[1625117103282,3.7,2198.7,2198.1,5.16409759]
[1625117103881,4.4915,2198.8,2198.1,5.16409759]
[1625117104182,6.82074,2198.7,2198.1,5.16409759]
[1625117104283,6.82074,2198.7,2198.2,0.12]
[1625117104384,6.82074,2198.7,2198.1,0.26794644]
[1625117105386,6.82074,2198.7,2198.0,7.08823317]
[1625117105587,6.82074,2198.7,2198.1,0.26780491]
[1625117105987,6.8203,2198.9,2198.2,0.06]
[1625117106188,6.8203,2198.9,2198.1,0.26780491]
[1625117106588,12.93913464,2198.9,2198.1,0.26780491]
[1625117107340,12.93913464,2198.9,2198.1,7.08795491]
[1625117107539,6.8203,2198.9,2198.1,6.82015]
[1625117107738,6.8203,2198.9,2198.1,7.08786538]
[1625117107938,6.8203,2198.9,2198.2,0.04]
[1625117108448,6.8203,2198.9,2198.2,6.85985]
[1625117109382,0.01574727,2198.6,2198.2,6.85985]
[1625117109587,0.01574726,2198.4,2198.2,6.85985]
[1625117109784,0.01574726,2198.4,2198.2,6.81985]
[1625117109882,0.01574726,2198.6,2198.3,0.04]
[1625117112723,0.01574726,2198.6,2198.3,6.8596]
[1625117112822,0.01574726,2198.6,2198.5,5.01]
[1625117112926,0.01574726,2198.6,2198.5,8.4518]
[1625117113684,0.01574726,2198.6,2198.5,3.4418]
[1625117114437,6.81902,2199.2,2198.6,11.35]
[1625117114544,3.41043,2199.3,2198.6,11.35]
[1625117114644,11.36883,2199.6,2198.7,7.11706474]
[1625117114742,10.4897,2199.8,2198.7,7.14847644]
[1625117114839,6.81786,2199.6,2198.8,0.06]
[1625117114939,6.81786,2199.6,2198.8,0.9371]
[1625117115039,6.81786,2199.6,2198.9,0.14]
[1625117115137,6.81786,2199.6,2198.9,5.15]
[1625117115637,16.56041,2199.8,2198.9,5.15]
[1625117116085,10.4897,2199.8,2198.9,5.15]
[1625117116889,17.30706,2199.8,2198.9,11.96776]
[1625117117091,20.71613,2199.8,2198.9,5.15]
[1625117117288,13.89877,2199.8,2198.9,5.15]
[1625117117692,13.89877,2199.8,2198.9,0.14]
[1625117118332,6.10478936,2199.7,2198.9,0.14]
[1625117118439,6.34400908,2199.7,2198.9,0.14]
[1625117118545,11.49725196,2199.5,2198.5,3.06753582]
[1625117118639,5.01,2199.4,2198.5,0.26753582]
[1625117118743,5.01,2199.4,2198.4,0.40130373]
[1625117118744,5.01,2199.4,2198.4,0.2675934]
[1625117118847,11.66819891,2199.3,2198.4,0.2675934]
[1625117118936,11.80819891,2199.3,2198.4,0.2675934]
[1625117119046,3.4103939,2199.2,2198.1,0.26762172]
[1625117119131,6.24317087,2199.1,2198.1,0.26762172]
[1625117119232,5.01,2199.0,2198.1,0.26762172]
[1625117119332,6.17745073,2198.9,2197.9,0.26764337]
[1625117119431,6.44579583,2199.1,2197.9,0.34764337]
[1625117119529,5.01,2199.0,2197.9,0.34764337]
[1625117119630,6.44579583,2199.1,2197.9,0.26764337]
[1625117119830,5.59572321,2199.2,2197.9,0.26764337]
[1625117119934,11.6801626,2199.2,2197.9,7.3243942]
[1625117120031,6.82006,2199.0,2198.1,6.82006]
[1625117120131,3.41007,2199.1,2198.1,10.39696]
[1625117120230,3.41007,2199.1,2198.2,6.38240972]
[1625117120352,3.41007,2199.1,2198.2,0.18]
[1625117120543,3.41007,2199.1,2198.3,5.01]
[1625117120748,2.11945827,2199.3,2198.3,5.21]
[1625117120844,8.16051939,2199.3,2198.3,5.21]
[1625117120944,8.16051939,2199.3,2198.4,5.01]
[1625117121445,14.97929939,2199.3,2198.4,11.82901]
[1625117121645,14.97929939,2199.3,2198.4,6.81901]
[1625117121945,14.97929939,2199.3,2198.3,3.519]
[1625117122146,17.1646287,2199.3,2198.3,0.14]
[1625117122250,20.5747322,2199.3,2198.3,0.14]
[1625117122447,13.7559522,2199.3,2198.3,0.14]
[1625117122594,6.82021,2198.8,2198.3,5.15]
[1625117122697,30.06064,2199.4,2198.4,0.16]
[1625117122796,20.9669,2199.4,2198.4,0.16]
[1625117122893,20.9669,2199.4,2198.6,5.01]
[1625117123095,20.9669,2199.4,2198.5,1.4765]
[1625117123292,20.9669,2199.4,2198.5,6.4865]
[1625117123391,20.9669,2199.4,2198.5,1.4765]
[1625117123493,20.9669,2199.4,2198.5,1.2965]
[1625117123693,35.78521,2199.4,2198.5,1.2965]
[1625117123791,5.01,2199.2,2198.5,1.2965]
[1625117124194,28.9669,2199.4,2198.5,1.2965]
[1625117124294,20.9669,2199.4,2198.5,6.3065]
[1625117124396,20.9669,2199.4,2198.5,1.2965]
[1625117124491,20.9669,2199.4,2198.6,0.08]
[1625117124591,20.9669,2199.4,2198.7,0.04]
[1625117125043,27.78512,2199.4,2198.7,0.04]
[1625117125140,5.01,2199.2,2198.5,1.1565]
[1625117125444,5.01,2199.2,2198.3,13.59549383]
[1625117125547,5.01,2199.2,2198.3,4.50409383]
[1625117125643,5.01,2199.2,2198.3,4.2364]
[1625117125841,6.05518218,2199.3,2198.3,4.2364]
[1625117125942,5.01,2199.2,2198.3,4.2364]
[1625117126538,6.81945,2199.1,2198.3,11.05585]
[1625117126791,6.81945,2199.1,2198.4,0.04]
[1625117126893,6.81945,2199.1,2198.3,10.91585]
[1625117128090,9.09268,2199.2,2198.3,10.91585]
[1625117128192,12.95793269,2199.3,2198.5,5.01]
[1625117128392,6.81878,2199.3,2198.5,5.01]
[1625117129482,6.81878,2199.3,2198.3,11.32359032]
[1625117129682,6.81878,2199.3,2198.5,5.01]
[1625117129984,6.81878,2199.3,2198.6,0.04]
[1625117130183,6.81878,2199.3,2198.5,11.82875]
[1625117131240,12.87571486,2199.3,2198.4,1.3637]
[1625117131342,12.87571486,2199.3,2198.3,0.26774032]
[1625117131584,15.06104417,2199.3,2198.2,0.26776083]
[1625117131881,15.06104417,2199.3,2198.3,0.12]
[1625117132484,15.06104417,2199.3,2198.2,0.26776083]
[1625117132882,15.06104417,2199.3,2198.4,6.81906]
[1625117133183,15.06104417,2199.3,2198.2,0.26776083]
[1625117133283,15.06104417,2199.3,2198.2,5.27776083]
[1625117133385,15.06104417,2199.3,2198.2,5.01]
[1625117133688,15.06104417,2199.3,2198.2,5.27776061]
[1625117134394,15.06104417,2199.3,2198.2,12.09726061]
[1625117134593,15.06104417,2199.3,2198.2,13.09726061]
[1625117135297,15.06104417,2199.3,2198.2,6.27776061]
[1625117135395,17.18050244,2199.3,2198.2,6.27776061]
[1625117135697,17.18050244,2199.3,2198.2,6.01]
[1625117135894,17.18050244,2199.3,2198.2,1.0]
[1625117136137,0.14,2199.2,2198.2,6.01]
[1625117136336,0.14,2199.2,2198.3,5.15]
[1625117136436,0.14,2199.2,2198.3,0.14]
[1625117136537,0.14,2199.2,2198.2,6.01]
[1625117136889,15.05139244,2199.3,2198.2,6.01]
[1625117136993,13.77179244,2199.3,2198.2,6.01]
[1625117137089,3.41,2199.2,2198.2,1.0]
[1625117137390,6.82,2198.8,2198.2,7.81972]
[1625117137789,6.82,2198.8,2198.3,0.06]
[1625117138356,15.29010445,2199.1,2198.3,0.06]
[1625117138850,15.29010445,2199.1,2198.2,7.81972]
[1625117139146,6.81994,2198.8,2198.2,7.81972]
[1625117139346,6.81994,2198.8,2198.2,1.0]
[1625117139547,6.81994,2198.8,2198.2,6.01]
[1625117139650,6.81994,2198.8,2198.2,1.0]
[1625117140048,6.81994,2198.8,2198.3,0.1]
[1625117140450,9.09308,2199.1,2198.3,0.1]
[1625117140605,15.17485857,2199.1,2198.3,0.1]
[1625117141391,15.17485857,2199.1,2198.2,6.01]
[1625117141491,6.81993,2198.8,2198.2,6.01]
[1625117142693,6.81993,2198.8,2198.2,12.82971]
[1625117142884,15.17485857,2199.1,2198.3,0.16]
[1625117142985,9.09308,2199.1,2198.3,0.16]
[1625117143284,9.09308,2199.1,2198.2,12.82971]
[1625117143785,6.81994,2198.8,2198.2,12.82971]
[1625117144487,6.81994,2198.8,2198.2,6.01]
[1625117146321,6.81994,2198.8,2198.3,0.06]
[1625117147566,15.29633519,2199.1,2198.3,0.06]
[1625117147672,9.09308,2199.1,2198.3,0.06]
[1625117148267,6.81947,2199.0,2198.3,6.87945]
[1625117148570,6.81947,2199.0,2198.4,0.04]
[1625117148767,6.81947,2199.0,2198.2,6.01]
[1625117151572,6.00865705,2199.1,2198.2,12.82977]
[1625117151672,17.2281,2199.2,2198.2,12.82977]
[1625117151772,17.2281,2199.2,2198.3,0.18]
[1625117153382,17.2281,2199.2,2198.5,6.81907]
[1625117153482,6.8192,2199.2,2198.5,6.81907]
[1625117153682,6.8192,2199.2,2198.6,0.04]
[1625117154818,6.8192,2199.2,2198.6,6.85898]
[1625117154925,9.8429,2199.7,2198.7,27.8]
[1625117155022,23.14960317,2200.1,2198.9,5.01]
[1625117155119,23.14960317,2200.1,2199.0,5.01]
[1625117155227,23.14960317,2200.1,2199.0,6.92700997]
[1625117155326,20.96427386,2200.1,2199.2,5.01]
[1625117155437,20.96427386,2200.1,2199.3,6.31821364]
[1625117155520,20.6999,2200.1,2199.3,6.49821364]
[1625117155820,10.0,2200.1,2199.3,6.49821364]
[1625117155922,10.0,2200.1,2199.6,0.02823731]
[1625117156021,10.0,2200.1,2199.6,7.16457821]
[1625117156123,10.0,2200.1,2199.8,5.01]
[1625117156378,10.0,2200.1,2199.9,11.05505132]
[1625117156573,10.0,2200.1,2200.0,5.01]
[1625117156676,10.0,2200.1,2200.0,10.93483032]
[1625117156773,10.0,2200.1,2200.0,11.07483032]
[1625117157452,10.0,2200.1,2200.0,17.88958032]
[1625117157552,10.0,2200.1,2200.0,18.02958032]
[1625117160424,10.0,2200.1,2200.0,12.10475]
[1625117160524,10.0,2200.1,2200.0,17.94642381]
[1625117160824,10.0,2200.1,2200.0,11.96475]
[1625117162682,10.0,2200.1,2200.0,5.15]
[1625117163580,10.0,2200.1,2200.0,4.90498992]
[1625117164670,10.0,2200.1,2200.0,4.94498992]
[1625117166122,10.0,2200.1,2200.0,4.90498992]
[1625117166326,10.0,2200.1,2200.0,0.14]
[1625117167030,10.0,2200.1,2200.0,6.02196163]
[1625117167431,10.0,2200.1,2200.0,0.14]
[1625117168378,10.0,2200.1,2200.0,5.15]
[1625117168569,10.0,2200.1,2200.0,5.21]
[1625117169168,10.0,2200.1,2200.0,11.3050864]
[1625117169268,9.0,2200.1,2200.0,11.3050864]
[1625117169369,9.0,2200.1,2200.0,5.15]
[1625117169569,9.0,2200.1,2200.0,11.21502106]
[1625117169780,9.0,2200.1,2200.0,15.90132106]
[1625117169969,9.0,2200.1,2200.0,16.10132106]
[1625117170475,31.1328,2200.9,2200.1,5.01]
[1625117170641,14.49769194,2201.7,2200.4,6.81343]
[1625117170736,34.90019194,2201.7,2200.6,5.01]
[1625117170841,31.70019194,2201.7,2200.7,5.01]
[1625117170935,42.00209194,2201.7,2200.7,11.83566172]
[1625117171037,41.7376,2201.7,2200.8,0.14]
[1625117171591,48.55002,2201.7,2200.8,6.952]
[1625117171691,48.55002,2201.7,2200.9,6.36054962]
[1625117171795,49.55002,2201.7,2200.9,6.36054962]
[1625117171891,39.24812,2201.7,2200.9,6.36054962]
[1625117172694,32.4357,2201.7,2200.9,13.17228962]
[1625117172877,31.4357,2201.7,2200.9,13.17228962]
[1625117173232,31.4357,2201.7,2201.0,0.24]
[1625117174034,31.4357,2201.7,2201.3,6.81065]
[1625117174138,6.85,2201.8,2201.4,6.20579115]
[1625117174240,6.85,2201.8,2201.4,6.19894986]
[1625117175550,10.7218,2202.2,2201.4,6.19894986]
[1625117175752,10.6718,2202.2,2201.4,6.19894986]
[1625117175848,27.90753,2202.3,2201.4,6.19894986]
[1625117175849,28.90753,2202.3,2201.4,6.19894986]
[1625117178245,27.90753,2202.3,2201.4,6.19894986]
[1625117178649,21.0968,2202.3,2201.4,13.00907986]
[1625117178751,21.0968,2202.3,2201.5,0.2]
[1625117179400,21.0968,2202.3,2201.6,5.01]
[1625117180238,21.0968,2202.3,2201.7,6.17314807]
[1625117180338,10.8083,2202.3,2201.7,6.17314807]
[1625117180844,7.81013,2202.6,2201.6,11.81968]
[1625117180940,7.81013,2202.6,2201.7,5.89869085]
[1625117181257,7.81013,2202.6,2201.8,0.1]
[1625117181539,6.81013,2202.6,2201.8,0.1]
[1625117181639,15.25,2202.5,2201.7,6.03869085]
[1625117181991,15.25,2202.5,2201.7,0.14]
[1625117182443,23.25,2202.5,2201.4,6.473978]
[1625117182548,5.01,2202.3,2201.4,0.14]
[1625117182670,5.01,2202.3,2201.4,5.93201818]
[1625117182671,8.6874,2202.3,2201.4,5.93201818]
[1625117182748,8.6874,2202.3,2201.2,6.24533443]
[1625117182845,3.6774,2202.3,2201.2,6.24533443]
[1625117183344,10.48822,2202.3,2201.3,6.81032]
[1625117184183,10.48822,2202.3,2201.4,5.88575126]
[1625117184413,3.6774,2202.3,2201.4,5.88575126]
[1625117184488,5.01,2202.4,2201.4,12.69559126]
[1625117184586,3.76613233,2202.5,2201.6,5.01]
[1625117184688,1.98327727,2202.5,2201.6,5.01]
[1625117184786,6.80999,2202.6,2201.6,5.01]
[1625117184983,6.80999,2202.6,2201.4,0.14]
[1625117185285,6.80999,2202.6,2201.5,5.01]
[1625117185385,6.80999,2202.6,2201.6,5.91052648]
[1625117185484,6.80999,2202.6,2201.6,5.91071618]
[1625117185694,6.80999,2202.6,2201.4,0.14]
[1625117185840,10.1752,2202.8,2202.0,6.80817]
[1625117185945,20.881,2202.9,2202.1,5.899098]
[1625117186037,20.881,2202.9,2202.2,5.01]
[1625117186138,10.0572,2202.9,2202.3,11.38571103]
[1625117186238,10.0572,2202.9,2202.3,5.01]
[1625117186449,1.0,2203.1,2202.4,0.14]
[1625117186648,20.7356,2203.3,2202.4,6.19227201]
[1625117186948,20.7356,2203.3,2202.4,12.99922201]
[1625117187200,9.8907,2203.3,2202.4,12.99922201]
[1625117190509,9.8907,2203.3,2202.6,5.01]
[1625117190711,9.8907,2203.3,2202.6,6.94619]
[1625117191012,9.8907,2203.3,2202.6,0.14]
[1625117192446,16.69821,2203.3,2202.6,0.14]
[1625117192646,0.1,2203.2,2202.6,0.14]
[1625117192946,9.8907,2203.3,2202.6,0.14]
[1625117193747,9.8907,2203.3,2202.6,6.94607]
[1625117193889,27.38598,2203.5,2202.6,6.94607]
[1625117194090,27.38598,2203.5,2202.6,6.89607]
[1625117194590,20.5793,2203.5,2202.6,6.89607]
[1625117195192,20.5793,2203.5,2202.7,0.04]
[1625117195293,20.5793,2203.5,2202.6,0.09]
[1625117196289,20.6019958,2203.5,2202.6,0.09]
[1625117196588,20.6019958,2203.5,2202.6,6.00955391]
[1625117196690,27.4085858,2203.5,2202.6,6.89611]
[1625117196790,32.41261545,2203.5,2202.6,6.89611]
[1625117196888,32.41261545,2203.5,2202.6,6.80611]
[1625117196988,32.41261545,2203.5,2202.5,9.07423]
[1625117196989,25.60602545,2203.5,2202.5,9.07423]
[1625117197190,25.60602545,2203.5,2202.6,0.14]
[1625117197592,5.01,2203.3,2202.1,5.95331366]
[1625117197694,6.80826,2202.9,2201.8,29.17983]
[1625117197793,15.24176907,2202.9,2202.0,0.14]
[1625117197892,10.12586,2202.9,2202.0,0.14]
[1625117198194,10.12586,2202.9,2201.9,9.07708]
[1625117199495,10.12586,2202.9,2201.9,15.1146019]
[1625117199596,10.12586,2202.9,2202.1,5.01]
[1625117200398,3.3176,2202.9,2202.1,5.01]
[1625117200500,16.06298571,2203.2,2202.1,11.81782]
[1625117200663,16.06298571,2203.2,2202.2,5.13]
[1625117200745,16.06298571,2203.2,2202.2,0.12]
[1625117200844,16.06298571,2203.2,2202.4,5.01]
[1625117201045,16.06298571,2203.2,2202.3,5.15]
[1625117201145,5.22648571,2203.2,2202.3,0.14]
[1625117201250,5.22648571,2203.2,2202.5,5.01]
[1625117201494,5.22648571,2203.2,2202.3,0.14]
[1625117201790,8.68438571,2203.2,2202.3,0.14]
[1625117201996,3.4579,2203.2,2202.3,0.14]
[1625117202194,3.4579,2203.2,2202.3,6.04791244]
[1625117202298,3.4579,2203.2,2202.5,5.01]
[1625117202396,3.4579,2203.2,2202.5,11.81661]
[1625117202598,3.4579,2203.2,2202.5,6.80661]
[1625117202802,5.10815778,2203.1,2202.3,0.14]
[1625117203012,5.10815778,2203.1,2202.2,9.07562]
[1625117203112,5.01,2203.0,2202.2,9.07562]
[1625117203414,3.4579,2203.2,2202.2,9.07562]
[1625117203514,9.0774,2203.1,2202.4,5.01]
[1625117203615,15.93567619,2203.3,2202.4,5.01]
[1625117204513,22.74266619,2203.3,2202.6,6.80644]
[1625117204618,17.45259,2203.3,2202.6,6.80644]
[1625117204715,6.80699,2203.3,2202.6,6.80644]
[1625117205455,20.6019958,2203.5,2202.6,6.80644]
[1625117206449,27.4082758,2203.5,2202.6,11.56014]
[1625117207543,6.80634,2203.4,2202.6,11.56014]
[1625117207852,9.8711958,2203.5,2202.8,5.01]
[1625117207948,9.8711958,2203.5,2202.9,6.86246256]
[1625117208047,9.8711958,2203.5,2202.9,7.04423677]
[1625117208145,0.0226958,2203.5,2202.9,12.05423677]
[1625117208248,0.0226958,2203.5,2202.9,0.14]
[1625117208349,0.0226958,2203.5,2203.1,5.01]
[1625117208452,0.0226958,2203.5,2203.1,8.5126]
[1625117208554,0.0226958,2203.5,2203.1,3.5026]
[1625117210370,0.0226958,2203.5,2203.1,9.40015109]
[1625117210671,0.0226958,2203.5,2203.1,3.5026]
[1625117211985,0.0226958,2203.5,2203.1,0.81631062]
[1625117213490,0.0226958,2203.5,2203.0,10.51902]
[1625117213590,0.0226958,2203.5,2203.0,9.56502]
[1625117213690,0.0226958,2203.5,2203.0,7.99772]
[1625117213792,0.0226958,2203.5,2203.1,6.33634659]
[1625117213893,0.0226958,2203.5,2203.3,5.01]
[1625117213996,0.0226958,2203.5,2203.3,11.15335105]
[1625117214180,0.0226958,2203.5,2203.3,0.14]
[1625117214772,0.0226958,2203.5,2203.3,3.9371]
[1625117217340,0.0226958,2203.5,2203.3,9.93172673]
[1625117217423,0.0226958,2203.5,2203.3,9.8686254]
[1625117217524,0.0226958,2203.5,2203.3,3.9371]
[1625117217628,6.8226958,2203.8,2203.3,3.9371]
[1625117218127,15.92258,2204.2,2203.3,3.9371]
[1625117218328,6.80448,2203.9,2203.3,3.9371]
[1625117218430,6.80448,2203.9,2203.3,0.14]
[1625117218753,0.1,2203.8,2203.3,0.14]
[1625117218850,21.59920516,2204.2,2203.3,0.14]
[1625117218950,31.78130516,2204.2,2203.3,0.14]
[1625117219449,26.10468,2204.2,2203.3,0.14]
[1625117219652,6.80472,2203.8,2203.1,5.01]
[1625117219950,6.80472,2203.8,2203.0,5.15]
[1625117220354,3.95388787,2203.8,2203.1,5.01]
[1625117220452,6.26864954,2203.7,2203.0,5.15]
[1625117220753,6.8057,2203.5,2203.0,5.15]
[1625117220899,3.8685,2203.5,2202.7,0.14]
[1625117221098,6.34556973,2203.4,2202.7,0.14]
[1625117222199,6.10055965,2203.4,2202.8,5.01]
[1625117222399,12.90654965,2203.4,2202.8,5.01]
[1625117222800,12.90654965,2203.4,2202.7,0.14]
[1625117222899,12.90654965,2203.4,2202.8,5.01]
[1625117224648,12.90654965,2203.4,2202.7,6.94604]
[1625117224749,6.10055965,2203.4,2202.7,6.94604]
[1625117226401,5.85944263,2203.4,2202.7,6.94604]
[1625117226956,12.66611263,2203.4,2202.7,0.14]
[1625117227064,15.92131263,2203.4,2202.7,0.14]
[1625117227158,0.08,2203.3,2202.2,1.0]
[1625117227259,5.01,2203.2,2202.2,1.0]
[1625117227356,7.01239764,2203.1,2202.2,1.0]
[1625117227453,7.09954519,2203.1,2202.2,1.0]
[1625117228091,6.49779689,2202.7,2202.1,9.21676]
[1625117228191,11.26972837,2202.7,2202.1,9.07676]
[1625117228292,11.26972837,2202.7,2201.8,0.14]
[1625117228453,3.7,2202.2,2201.8,0.14]
[1625117228547,6.25012851,2202.1,2201.8,0.14]
[1625117228647,8.3101,2202.2,2201.5,3.40425]
[1625117228744,6.09170798,2202.1,2201.4,0.14]
[1625117229145,6.09170798,2202.1,2201.7,6.75943]
[1625117230794,8.3101,2202.2,2201.7,6.75943]
[1625117231196,14.28598813,2202.2,2201.9,5.01]
[1625117231298,14.28576098,2202.2,2201.9,5.01]
[1625117231396,8.3101,2202.2,2201.9,5.01]
[1625117231623,14.31981941,2202.2,2201.7,5.01]
[1625117231827,8.3101,2202.2,2201.7,5.01]
[1625117232453,8.3101,2202.2,2201.9,6.80886]
[1625117233205,14.28122093,2202.2,2201.9,6.80886]
[1625117233304,8.3101,2202.2,2201.9,6.80886]
[1625117233507,8.3101,2202.2,2201.7,5.01]
[1625117234206,7.367,2202.2,2201.7,5.01]
[1625117236452,7.367,2202.2,2201.7,11.81914]
[1625117238549,7.317,2202.2,2201.7,11.81914]
[1625117239243,7.317,2202.2,2201.7,11.82550934]
[1625117239843,13.36035857,2202.2,2201.7,11.82550934]
[1625117240046,7.317,2202.2,2201.7,11.82550934]
[1625117240243,7.317,2202.2,2201.7,6.81550934]
[1625117244618,6.80948,2203.1,2201.7,6.81550934]
[1625117244619,2.7,2202.6,2202.0,0.01708003]
[1625117244717,2.7,2202.6,2202.0,6.7542432]
[1625117244815,2.3,2202.9,2202.1,0.14]
[1625117244916,5.99149739,2203.1,2202.2,5.01]
[1625117245017,21.2774,2203.2,2202.2,3.2352]
[1625117245110,21.2774,2203.2,2202.3,0.14]
[1625117245214,21.2774,2203.2,2202.4,5.01]
[1625117245412,21.2774,2203.2,2202.5,0.14]
[1625117245512,16.74509377,2203.2,2202.5,0.14]
[1625117245786,10.7664,2203.2,2202.5,0.14]
[1625117245886,23.66732909,2203.2,2202.5,0.14]
[1625117245988,23.66732909,2203.2,2202.3,0.14]
[1625117246085,0.12,2203.1,2202.3,0.14]
[1625117246288,21.74858909,2203.2,2202.3,0.14]
[1625117246818,21.74858909,2203.2,2202.3,5.15]
[1625117247018,21.74858909,2203.2,2202.3,0.14]
[1625117247121,16.86028909,2203.2,2202.3,0.14]
[1625117248411,6.80769,2203.0,2202.3,6.94735]
[1625117248852,6.80769,2203.0,2202.3,0.14]
[1625117248952,12.7645514,2203.0,2202.3,0.14]
[1625117250201,12.7645514,2203.0,2202.4,0.00603807]
[1625117250600,12.8245514,2203.0,2202.4,0.00603807]
[1625117251301,12.7645514,2203.0,2202.4,0.00603807]
[1625117266698,6.80769,2203.0,2202.4,0.00603807]
[1625117268259,5.97285954,2202.9,2202.4,0.00603807]
[1625117268357,9.12455954,2202.9,2202.4,0.00603807]
[1625117269454,6.80804,2202.7,2202.4,0.00603807]
[1625117277166,0.13079045,2202.9,2202.4,0.00603807]
[1625117277265,0.13079045,2202.9,2202.4,8.93763807]
[1625117277366,0.13079045,2202.9,2202.5,0.2]
[1625117277564,0.1306413,2203.0,2202.5,0.2]
[1625117277867,0.1306413,2203.0,2202.6,6.80648]
[1625117278366,6.80676,2203.1,2202.6,6.80648]
[1625117278768,0.13042374,2203.2,2202.6,6.80648]
[1625117280451,6.93719374,2203.2,2202.6,6.80648]
[1625117280554,12.88322743,2203.2,2202.6,6.80648]
[1625117280651,6.93719374,2203.2,2202.6,6.80648]
[1625117280950,12.96845649,2203.2,2202.6,6.80648]
[1625117281051,12.96845649,2203.2,2202.6,10.36808]
[1625117281153,6.93719374,2203.2,2202.6,10.36808]
[1625117281350,12.91210679,2203.2,2202.6,10.36808]
[1625117281448,6.93719374,2203.2,2202.6,10.36808]
[1625117281660,12.92336616,2203.2,2202.6,10.36808]
[1625117281961,12.92336616,2203.2,2202.6,10.12696298]
[1625117282058,6.93719374,2203.2,2202.6,10.12696298]
[1625117282162,12.87490844,2203.2,2202.6,10.12696298]
[1625117282260,6.93719374,2203.2,2202.6,10.12696298]
[1625117283413,12.90229362,2203.2,2202.6,10.12696298]
[1625117283515,12.77186988,2203.2,2202.6,6.56536298]
[1625117283615,6.80677,2203.2,2202.6,6.56536298]
[1625117285956,6.80677,2203.2,2202.6,6.3267018]
[1625117286457,17.63928,2203.3,2202.6,6.3267018]
[1625117292159,6.30315853,2203.2,2202.5,0.14]
[1625117292259,5.01,2203.1,2202.3,1.0]
[1625117292357,11.42198738,2203.0,2202.3,1.0]
[1625117292559,5.01,2203.0,2202.3,1.0]
[1625117292661,11.0519127,2203.0,2201.9,9.07545]
[1625117292757,5.87607395,2202.9,2201.9,9.07545]
[1625117293252,5.87607395,2202.9,2202.4,0.00603807]
[1625117293452,9.07827,2202.8,2202.4,0.00603807]
[1625117294056,13.41267,2202.8,2202.4,0.00603807]
[1625117295407,6.8085,2202.6,2202.4,0.00603807]
[1625117295609,0.14,2202.5,2202.4,0.00603807]
[1625117295909,6.8085,2202.6,2202.4,0.00603807]
[1625117296010,14.44517,2202.8,2202.4,0.00603807]
[1625117296811,13.41267,2202.8,2202.4,0.00603807]
[1625117297008,6.80843,2202.6,2202.4,0.00603807]
[1625117301009,6.80843,2202.6,2202.0,6.76426807]
[1625117301903,6.80843,2202.6,2202.0,6.66426807]
[1625117302105,6.80843,2202.6,2202.0,7.66426807]
[1625117302206,6.80797,2202.7,2202.0,7.66426807]
[1625117302405,6.2776501,2202.9,2202.1,0.14]
[1625117302507,20.11332734,2203.0,2202.1,0.14]
[1625117302508,15.8558,2203.0,2202.1,0.14]
[1625117302607,10.8458,2203.0,2202.2,5.01]
[1625117302906,9.39409103,2203.1,2202.2,5.01]
[1625117303013,10.3117,2203.2,2202.3,6.3284768]
[1625117303106,10.3117,2203.2,2202.3,0.14]
[1625117303210,17.1184,2203.2,2202.7,6.80619]
[1625117303307,10.8329,2203.3,2202.7,6.80619]
[1625117303406,10.8329,2203.3,2202.7,11.29589]
[1625117303504,9.07729,2203.4,2202.7,11.29589]
[1625117304358,6.80633,2203.3,2202.7,11.29589]
[1625117304863,6.98069606,2203.6,2202.9,5.01]
[1625117304961,0.13069606,2203.6,2202.8,6.01985747]
[1625117305062,0.13065201,2203.7,2202.8,6.12564131]
[1625117305161,6.04816942,2203.7,2202.8,6.12564131]
[1625117305260,6.04816942,2203.7,2202.8,5.98564131]
[1625117305360,6.04816942,2203.7,2203.0,5.01]